bitfinex-derivatives/quotes_ETHF0:USTF0_20251001
["timestamp","ask_amount","ask_price","bid_price","bid_amount"]
[1759347469564,0.00257638,4324.2,4324.1,2.64973885]
[1759347470271,0.00257638,4324.2,4324.1,5.85753885]
[1759347470669,0.00257638,4324.2,4324.1,4.2015]
[1759347470875,0.75987638,4324.2,4324.1,3.8713]
[1759347471760,0.75987638,4324.2,4324.1,4.2005]
[1759347472071,0.75987638,4324.2,4324.1,3.8713]
[1759347473164,0.75987638,4324.2,4324.1,4.2005]
[1759347474372,0.55427638,4324.2,4324.1,4.2005]
[1759347474573,0.00257638,4324.2,4324.1,4.2005]
[1759347475873,0.00257638,4324.2,4324.1,5.85653885]
[1759347476176,1.0086,4324.5,4324.4,0.4244]
[1759347476466,0.3204,4325.3,4324.6,0.3327]
[1759347476670,0.7404,4325.3,4325.2,0.7571]
[1759347476864,0.7404,4325.3,4325.2,0.9921]
[1759347477067,0.74324004,4325.3,4325.2,0.99431474]
[1759347478673,0.74324004,4325.3,4325.2,0.66161474]
[1759347481370,0.00284004,4325.3,4325.2,0.75931474]
[1759347481570,0.32324004,4325.3,4325.2,4.20111474]
[1759347481770,0.00284004,4325.3,4325.2,4.20111474]
[1759347486172,1.0541,4325.5,4325.4,0.4244]
[1759347486374,1.0541,4325.5,4325.4,0.9911]
[1759347486571,0.41572,4327.6,4325.5,0.1243]
[1759347486769,0.3204,4326.8,4326.1,0.3327]
[1759347486975,0.2061,4326.3,4326.2,0.6014]
[1759347487175,0.5265,4326.3,4326.2,0.9341]
[1759347487881,0.7404,4326.3,4326.2,0.6014]
[1759347488575,0.7404,4326.3,4326.2,0.9341]
[1759347490884,0.3204,4326.3,4326.2,0.9341]
[1759347491586,0.5265,4326.3,4326.2,0.9341]
[1759347491981,0.7404,4326.3,4326.2,0.9341]
[1759347492881,0.7404,4326.3,4326.2,0.9911]
[1759347493385,0.7404,4326.3,4326.2,0.6584]
[1759347496187,0.7404,4326.3,4326.2,0.9911]
[1759347497088,0.5265,4326.3,4326.2,0.9911]
[1759347498480,1.1375,4326.4,4326.2,0.9911]
[1759347498686,1.1375,4326.4,4326.3,0.7571]
[1759347499588,1.664,4326.4,4326.3,0.7571]
[1759347500390,1.4579,4326.4,4326.3,0.7571]
[1759347500787,1.1375,4326.4,4326.3,0.7571]
[1759347501187,1.4564,4326.4,4326.3,0.7571]
[1759347501487,1.1375,4326.4,4326.3,0.7571]
[1759347501691,1.4564,4326.4,4326.3,0.7571]
[1759347502393,1.1375,4326.4,4326.3,0.7571]
[1759347503295,1.1375,4326.4,4326.3,1.99433702]
[1759347503891,0.00194206,4326.8,4326.7,0.7577]
[1759347504096,0.00194206,4326.8,4326.7,4.1995]
[1759347504487,0.32354206,4326.8,4326.7,4.1995]
[1759347505992,0.00194206,4326.8,4326.7,4.1995]
[1759347509597,0.32354206,4326.8,4326.7,4.1995]
[1759347510297,0.00194206,4326.8,4326.7,4.1995]
[1759347511895,0.32354206,4326.8,4326.7,4.1995]
[1759347513093,0.74864206,4326.8,4326.7,3.9655]
[1759347513295,0.74864206,4326.8,4326.7,3.873]
[1759347513896,0.74864206,4326.8,4326.7,4.1995]
[1759347514697,0.53884206,4326.8,4326.7,4.1995]
[1759347515199,0.74864206,4326.8,4326.7,4.1995]
[1759347516199,0.53884206,4326.8,4326.7,4.1995]
[1759347518290,0.74864206,4326.8,4326.7,4.1995]
[1759347518700,0.53884206,4326.8,4326.7,4.1995]
[1759347519699,0.32354206,4326.8,4326.7,4.1995]
[1759347520300,0.53884206,4326.8,4326.7,4.1995]
[1759347526609,0.00194206,4326.8,4326.7,5.84914936]
[1759347529207,0.00194206,4326.8,4326.7,4.1995]
[1759347536913,0.00194206,4326.8,4326.7,6.28099125]
[1759347538401,0.00194206,4326.8,4326.7,4.1995]
[1759347540509,0.00194206,4326.8,4326.7,11.28099125]
[1759347540711,0.00194206,4326.8,4326.7,9.1995]
[1759347543210,0.00194206,4326.8,4326.7,11.26632187]
[1759347543813,0.54014206,4326.8,4326.7,6.03232187]
[1759347544014,0.54014206,4326.8,4326.7,6.26632187]
[1759347544314,0.33254206,4326.8,4326.7,6.26632187]
[1759347544715,0.75434206,4326.8,4326.7,6.26632187]
[1759347549116,0.75434206,4326.8,4326.7,6.03232187]
[1759347549419,0.75434206,4326.8,4326.7,6.26632187]
[1759347549615,0.75434206,4326.8,4326.7,6.03232187]
[1759347549921,0.75434206,4326.8,4326.7,3.6671]
[1759347551219,0.75434206,4326.8,4326.7,5.85104602]
[1759347552620,0.75434206,4326.8,4326.7,4.1975]
[1759347553019,0.75434206,4326.8,4326.7,3.9635]
[1759347553213,0.75434206,4326.8,4326.7,3.8835]
[1759347553928,0.75434206,4326.8,4326.7,4.1975]
[1759347560928,0.54014206,4326.8,4326.7,4.1975]
[1759347561227,0.00194206,4326.8,4326.7,4.1975]
[1759347561929,0.00194206,4326.8,4326.7,5.85104602]
[1759347562424,0.00194206,4326.8,4326.7,4.1975]
[1759347562725,0.00194206,4326.8,4326.7,5.85104602]
[1759347564028,0.32284206,4326.8,4326.7,5.61704602]
[1759347564329,0.32284206,4326.8,4326.7,5.85104602]
[1759347564528,0.00194206,4326.8,4326.7,5.85104602]
[1759347564927,0.52674206,4326.8,4326.7,5.85104602]
[1759347565725,0.74184206,4326.8,4326.7,4.1975]
[1759347566831,0.52674206,4326.8,4326.7,4.1975]
[1759347567025,0.32284206,4326.8,4326.7,4.1975]
[1759347567327,0.00194206,4326.8,4326.7,4.1975]
[1759347567527,0.00194206,4326.8,4326.7,5.85104602]
[1759347568030,0.52674206,4326.8,4326.7,4.1975]
[1759347569931,0.00194206,4326.8,4326.7,5.85104602]
[1759347570130,0.00194206,4326.8,4326.7,4.1975]
[1759347573236,0.00194206,4326.8,4326.7,6.26432187]
[1759347576034,0.6426,4327.0,4326.9,0.7687]
[1759347576334,0.3209,4327.9,4326.9,5.6687]
[1759347576531,0.3209,4327.9,4327.8,4.85840544]
[1759347576732,0.5248,4327.9,4327.8,3.4418]
[1759347576925,0.5269262,4327.9,4327.8,5.09240544]
[1759347577132,0.7420262,4327.9,4327.8,5.09240544]
[1759347577332,0.7420262,4327.9,4327.8,3.4418]
[1759347577938,0.7420262,4327.9,4327.8,3.2078]
[1759347578134,0.7420262,4327.9,4327.8,3.4418]
[1759347583041,5.4211262,4327.9,4327.5,1.65060544]
[1759347583237,0.7420262,4327.9,4327.6,0.234]
[1759347583730,0.552,4327.5,4327.4,1.23618351]
[1759347583933,0.8729,4327.5,4327.4,1.47018351]
[1759347588944,0.4539,4327.5,4327.4,0.234]
[1759347590048,0.3209,4327.5,4327.4,1.88460544]
[1759347590239,0.4539,4327.5,4327.4,1.88460544]
[1759347592144,0.4539,4327.5,4327.4,0.234]
[1759347592346,0.4539,4327.5,4327.4,1.88230388]
[1759347592546,0.4539,4327.5,4327.4,0.234]
[1759347592849,0.4539,4327.5,4327.4,1.88231308]
[1759347596141,0.4539,4327.5,4327.4,0.234]
[1759347596342,0.4539,4327.5,4327.4,1.88254244]
[1759347596541,0.4539,4327.5,4327.4,0.234]
[1759347598254,0.6795,4327.5,4327.4,0.234]
[1759347601664,0.8926,4327.5,4327.4,0.234]
[1759347604769,0.3375,4327.4,4327.2,3.2078]
[1759347604969,0.7762,4327.4,4327.3,0.233]
[1759347605370,0.3375,4327.3,4327.2,3.2078]
[1759347605570,0.7762,4327.3,4327.2,3.4408]
[1759347612373,0.5631,4327.3,4327.2,3.4408]
[1759347612568,0.3375,4327.3,4327.2,8.4408]
[1759347612873,0.3573,4328.5,4328.4,0.3814]
[1759347613069,0.5704,4328.5,4328.4,3.8222]
[1759347613878,0.57296415,4328.5,4328.4,3.44258859]
[1759347614777,0.91046415,4328.5,4328.4,3.44258859]
[1759347615773,0.91046415,4328.5,4328.4,3.63328859]
[1759347619683,0.91046415,4328.5,4328.4,3.44258859]
[1759347620883,0.91046415,4328.5,4328.4,3.63328859]
[1759347622584,0.91046415,4328.5,4328.4,3.82358859]
[1759347626095,0.91046415,4328.5,4328.4,3.94288859]
[1759347626485,0.91046415,4328.5,4328.4,3.82358859]
[1759347630187,0.69736415,4328.5,4328.4,3.94288859]
[1759347630389,0.47176415,4328.5,4328.4,3.94288859]
[1759347630588,0.00256415,4328.5,4328.4,5.59031022]
[1759347630790,0.00256415,4328.5,4328.4,3.94288859]
[1759347630991,0.00256415,4328.5,4328.4,5.58606164]
[1759347631289,0.00256415,4328.5,4328.4,3.94288859]
[1759347631992,0.3363,4329.4,4328.5,0.1168]
[1759347632198,0.3363,4329.4,4329.3,0.4904]
[1759347632497,0.3363,4329.4,4329.3,0.7234]
[1759347632693,0.5502,4329.4,4329.3,0.6066]
[1759347632992,0.55248985,4329.4,4329.3,0.6066]
[1759347635392,0.00228985,4329.4,4329.3,0.7234]
[1759347635593,0.33858985,4329.4,4329.3,0.7234]
[1759347636197,0.33858985,4329.4,4329.3,0.90577036]
[1759347636498,0.33858985,4329.4,4329.3,0.7234]
[1759347638100,0.33858985,4329.4,4329.3,2.57736659]
[1759347639003,0.00228985,4329.4,4329.3,2.57736659]
[1759347639802,0.00228985,4329.4,4329.3,4.21913238]
[1759347640601,0.33858985,4329.4,4329.3,4.21913238]
[1759347643307,0.00228985,4329.4,4329.3,4.21913238]
[1759347644601,0.33858985,4329.4,4329.3,4.21913238]
[1759347645298,0.33858985,4329.4,4329.3,2.57736659]
[1759347650504,0.1233,4330.5,4329.9,0.3736]
[1759347650704,0.5502,4330.4,4330.3,0.3736]
[1759347650899,0.5502,4330.4,4330.3,0.6066]
[1759347651105,0.767,4330.4,4330.3,0.6066]
[1759347651606,0.7695086,4330.4,4330.3,0.6066]
[1759347653507,0.3388086,4330.4,4330.3,0.7234]
[1759347653816,0.5527086,4330.4,4330.3,0.7234]
[1759347654016,0.7705086,4330.4,4330.3,0.6066]
[1759347654315,0.7705086,4330.4,4330.3,1.83431977]
[1759347655209,0.7705086,4330.4,4330.3,1.64751977]
[1759347656310,0.7705086,4330.4,4330.3,0.4198]
[1759347657413,0.7705086,4330.4,4330.3,1.41451977]
[1759347657600,3.2078,4331.6,4330.3,1.41451977]
[1759347657601,3.2078,4332.7,4330.4,0.3169]
[1759347657806,0.3284,4331.8,4331.7,3.7312]
[1759347658111,0.3284,4331.8,4331.7,3.9387]
[1759347658708,0.33020951,4331.8,4331.7,3.94043477]
[1759347661608,0.00180951,4331.8,4331.7,3.94043477]
[1759347662909,0.33020951,4331.8,4331.7,3.73293477]
[1759347663112,0.43280951,4331.8,4331.7,3.52643477]
[1759347663710,5.43280951,4331.8,4331.7,3.52643477]
[1759347665011,5.43280951,4331.8,4331.7,0.00173477]
[1759347667013,5.43280951,4331.8,4331.7,0.31863477]
[1759347667315,5.43280951,4331.8,4331.7,0.00173477]
[1759347667915,0.43280951,4331.8,4331.7,0.31863477]
[1759347668217,0.43280951,4331.8,4331.7,0.73263477]
[1759347668218,0.00180951,4331.8,4331.7,0.73263477]
[1759347668815,0.33020951,4331.8,4331.7,0.73263477]
[1759347669020,0.43280951,4331.8,4331.7,0.31863477]
[1759347669420,0.33020951,4331.8,4331.7,0.52513477]
[1759347670009,0.33020951,4331.8,4331.7,0.73263477]
[1759347671220,0.00180951,4331.8,4331.7,0.73263477]
[1759347672018,0.16600951,4331.8,4331.7,0.73263477]
[1759347672214,0.00180951,4331.8,4331.7,0.73263477]
[1759347672419,0.00180951,4331.8,4331.7,3.94043477]
[1759347673125,0.00180951,4331.8,4331.7,4.17343477]
[1759347677532,0.00180951,4331.8,4331.7,10.40127506]
[1759347680231,0.00180951,4331.8,4331.7,9.17343477]
[1759347684335,5.43410951,4331.8,4331.5,0.1319]
[1759347684536,0.7209,4331.5,4331.4,0.206]
[1759347684729,0.4375,4331.5,4331.4,0.428]
[1759347685337,0.4375,4331.5,4331.4,0.42965931]
[1759347686335,0.7209,4331.5,4331.4,0.42965931]
[1759347686531,0.7209,4331.5,4331.4,0.32955931]
[1759347686742,5.7209,4331.5,4331.4,0.00165931]
[1759347686930,5.7209,4331.5,4331.4,0.53555931]
[1759347687132,0.4375,4331.5,4331.4,0.75755931]
[1759347687634,0.7209,4331.5,4331.4,0.75755931]
[1759347687835,0.4375,4331.5,4331.4,0.75755931]
[1759347688131,0.2197,4331.5,4331.4,0.75755931]
[1759347689234,0.4375,4331.5,4331.4,0.75755931]
[1759347689832,0.7209,4331.5,4331.4,0.75755931]
[1759347690735,0.7209,4331.5,4331.4,0.32955931]
[1759347691040,0.7209,4331.5,4331.4,0.00165931]
[1759347691238,5.7209,4331.5,4331.4,0.00165931]
[1759347693343,0.7209,4330.8,4330.7,3.2078]
[1759347694236,0.7209,4330.8,4330.7,3.21031357]
[1759347695140,0.7209,4330.8,4330.7,0.00251357]
[1759347695641,0.9549,4330.8,4330.7,0.00251357]
[1759347696434,5.7209,4330.8,4330.7,0.00251357]
[1759347696632,6.55595,4330.8,4329.9,0.3279]
[1759347696835,0.7209,4329.8,4329.5,0.4531]
[1759347697040,0.7209,4329.6,4329.5,0.3279]
[1759347697241,0.234,4329.8,4329.5,0.5532]
[1759347697440,0.4537,4329.8,4329.7,0.7559]
[1759347697642,0.4537,4329.8,4329.7,0.75887567]
[1759347697839,0.6715,4329.8,4329.7,0.75887567]
[1759347698838,0.4375,4329.8,4329.7,0.75887567]
[1759347699336,0.5174,4330.1,4329.7,0.75887567]
[1759347699337,0.2197,4330.1,4330.0,0.1252]
[1759347699536,3.8793,4330.3,4330.2,0.428]
[1759347699741,4.1627,4330.3,4330.2,0.7559]
[1759347699932,3.9287,4330.3,4330.2,0.7559]
[1759347700138,3.4275,4330.3,4330.2,0.7559]
[1759347700341,3.2078,4330.3,4330.2,0.7559]
[1759347700738,3.4275,4330.3,4330.2,0.7559]
[1759347702538,3.2078,4330.3,4330.2,0.7559]
[1759347703243,0.234,4330.9,4330.3,0.3279]
[1759347703444,0.2197,4330.4,4330.3,0.7559]
[1759347705744,0.2197,4330.6,4330.5,0.1252]
[1759347705948,0.2197,4330.6,4330.5,0.8811]
[1759347707048,0.4375,4330.6,4330.5,0.8811]
[1759347707247,0.7209,4330.6,4330.5,0.6591]
[1759347709446,0.4375,4330.6,4330.5,0.8811]
[1759347711450,3.2078,4331.0,4330.5,0.5532]
[1759347711647,3.6453,4331.0,4330.9,0.5339]
[1759347711847,3.9287,4331.0,4330.9,0.5339]
[1759347712051,4.34409,4331.0,4330.5,0.1252]
[1759347712252,4.34409,4331.0,4330.6,0.3279]
[1759347712552,0.2178,4330.7,4330.6,0.3279]
[1759347712741,0.7209,4330.7,4330.6,0.3279]
[1759347713447,0.7209,4330.7,4330.6,0.5339]
[1759347714554,0.9549,4330.7,4330.6,0.5339]
[1759347718454,0.6715,4330.7,4330.6,0.7531]
[1759347719450,1.12198,4332.0,4330.6,0.7531]
[1759347719451,0.022,4332.9,4330.6,13.367]
[1759347719650,0.97334528,4334.2,4333.5,0.5781]
[1759347719850,3.3292,4335.0,4334.0,0.1342]
[1759347720050,10.35910339,4334.5,4334.4,0.781]
[1759347720257,0.431,4334.5,4334.4,0.5618]
[1759347720562,10.15056428,4334.5,4334.4,0.78284992]
[1759347721151,0.00256089,4334.5,4334.4,0.78284992]
[1759347721457,0.00256089,4334.5,4334.4,1.26292352]
[1759347721458,0.21994732,4334.5,4334.4,1.26292352]
[1759347721653,0.21994732,4334.5,4334.4,1.60211599]
[1759347721855,4.732e-05,4334.5,4334.4,1.93921599]
[1759347722059,4.732e-05,4334.5,4334.4,1.60211599]
[1759347722263,4.732e-05,4334.5,4334.4,0.78494239]
[1759347724156,0.21994732,4334.5,4334.4,1.12204239]
[1759347724762,0.21994732,4334.5,4334.4,1.53711239]
[1759347726866,0.21994732,4334.5,4334.4,1.12204239]
[1759347732269,10.35915071,4334.5,4334.4,1.12204239]
[1759347733874,10.66975071,4334.5,4334.4,1.12204239]
[1759347734271,10.66975071,4334.5,4334.4,0.00184992]
[1759347735171,11.20621071,4334.5,4334.4,0.00184992]
[1759347735473,10.79115071,4334.5,4334.4,0.41691992]
[1759347736775,19.41401071,4334.5,4334.4,0.00184992]
[1759347738474,0.431,4333.7,4333.6,1.19615]
[1759347738780,0.674,4333.7,4333.6,1.19615]
[1759347738980,0.9846,4333.7,4333.6,1.19615]
[1759347739375,0.9846,4333.7,4333.6,1.19843284]
[1759347739571,1.39974,4333.7,4333.6,0.75453284]
[1759347741387,1.39974,4333.7,4333.6,0.96983284]
[1759347743487,1.39974,4333.7,4333.6,0.33938284]
[1759347743885,1.39974,4333.7,4333.6,0.00228284]
[1759347744383,6.39974,4333.7,4333.6,0.00228284]
[1759347746987,6.39874,4333.7,4333.6,0.00228284]
[1759347748989,6.39874,4333.7,4333.6,0.41743284]
[1759347749487,6.39874,4333.7,4333.6,1.03192338]
[1759347749989,6.39874,4333.7,4333.6,0.61677338]
[1759347756584,0.4205,4333.1,4333.0,0.3347]
[1759347756784,0.41521,4332.9,4332.8,0.8171736]
[1759347756990,11.33561339,4332.9,4332.8,1.1518736]
[1759347757186,1.40751,4332.9,4332.8,1.3578736]
[1759347757387,1.40751,4332.9,4332.8,0.54359341]
[1759347757787,1.03791,4333.5,4332.8,0.54359341]
[1759347757788,4.732e-05,4334.5,4333.0,0.1347]
[1759347757998,0.42054732,4334.5,4334.4,0.7468]
[1759347758495,0.75134732,4334.5,4334.4,0.7468]
[1759347758695,0.99434732,4334.5,4334.4,0.7468]
[1759347759493,0.45134732,4334.5,4334.4,0.7468]
[1759347761892,0.78214732,4334.5,4334.4,0.7468]
[1759347762299,0.99434732,4334.5,4334.4,0.7468]
[1759347765195,0.75134732,4334.5,4334.4,0.7468]
[1759347765393,0.99434732,4334.5,4334.4,0.7468]
[1759347765800,0.53914732,4334.5,4334.4,0.7468]
[1759347766099,0.78114732,4334.5,4334.4,0.7468]
[1759347766697,0.78114732,4334.5,4334.4,1.16187]
[1759347768293,0.78114732,4334.5,4334.4,1.6443436]
[1759347768294,4.732e-05,4334.5,4334.4,1.6443436]
[1759347768892,4.732e-05,4334.5,4334.4,0.82717]
[1759347769798,4.732e-05,4334.5,4334.4,5.26424452]
[1759347772304,4.732e-05,4334.5,4334.4,4.03497]
[1759347775502,4.732e-05,4334.5,4334.4,4.27597]
[1759347775701,4.732e-05,4334.5,4334.4,5.50524452]
[1759347775901,3.5343,4335.6,4335.5,0.82936]
[1759347776209,3.7458,4335.6,4335.5,1.13566]
[1759347776405,13.67390339,4335.6,4335.5,1.13566]
[1759347776796,13.67552961,4335.6,4335.5,1.13566]
[1759347778106,14.09047961,4335.6,4335.5,1.13566]
[1759347778307,13.87912961,4335.6,4335.5,1.13566]
[1759347778510,3.95102622,4335.6,4335.5,1.26966]
[1759347780010,4.36597622,4335.6,4335.5,0.7207]
[1759347780309,0.538,4335.2,4335.1,1.1357]
[1759347780510,0.538,4335.5,4335.4,0.92577]
[1759347780708,0.2115,4335.5,4335.4,1.13567]
[1759347782713,0.538,4335.5,4335.4,1.13567]
[1759347784118,0.8677,4335.5,4335.0,4.33230872]
[1759347784310,0.2036,4335.4,4335.3,0.62488]
[1759347784617,0.7416,4335.4,4335.3,1.13568]
[1759347785609,0.7416,4335.4,4335.3,0.41498]
[1759347787319,1.15657,4335.4,4335.3,0.41498]
[1759347788820,0.7416,4335.4,4335.3,0.41498]
[1759347789013,1.15657,4335.4,4335.3,0.41498]
[1759347789320,0.9826,4335.4,4335.3,0.41498]
[1759347789622,0.9826,4335.4,4335.3,0.93118]
[1759347789813,1.15657,4335.4,4335.3,1.13568]
[1759347790517,0.7416,4335.4,4335.3,1.13568]
[1759347790815,1.15657,4335.4,4335.3,1.13568]
[1759347792818,0.7416,4335.4,4335.3,1.13568]
[1759347793417,1.15657,4335.4,4335.3,1.13568]
[1759347793714,0.53962622,4335.6,4335.5,0.96336]
[1759347793905,1.15817622,4335.6,4335.5,0.7207]
[1759347794106,11.08627961,4335.6,4335.5,0.7207]
[1759347794315,11.08627961,4335.6,4335.5,1.13566]
[1759347794811,11.08627961,4335.6,4335.5,0.7207]
[1759347795616,11.08627961,4335.6,4335.5,0.2099]
[1759347796221,11.32627961,4335.6,4335.5,0.5162]
[1759347796518,11.32627961,4335.6,4335.5,1.13566]
[1759347798315,0.95616,4335.5,4335.4,0.81820872]
[1759347798512,11.21076339,4335.5,4335.4,0.81820872]
[1759347807924,1.18007,4335.4,4335.3,0.81820872]
[1759347808117,11.34717339,4335.4,4335.3,0.81820872]
[1759347808318,1.18008,4335.3,4335.2,0.81820872]
[1759347808822,11.10818339,4335.3,4335.2,0.81820872]
[1759347810019,0.85529,4334.2,4334.1,1.22731308]
[1759347810226,1.1802,4334.1,4334.0,1.22731308]
[1759347810525,1.18021,4334.0,4333.9,0.5616]
[1759347810822,0.3249,4334.0,4333.9,1.19012]
[1759347811019,0.7815,4334.3,4334.2,1.19009]
[1759347811224,0.95758,4334.3,4334.2,1.19009]
[1759347816322,1.18018,4334.3,4334.2,0.775]
[1759347816630,1.18018,4334.3,4334.2,1.80453629]
[1759347817426,0.7651,4334.3,4334.2,1.80453629]
[1759347817929,0.95753,4334.8,4334.7,1.19003]
[1759347818333,10.88563339,4334.8,4334.7,1.19003]
[1759347818729,11.10823339,4334.8,4334.0,1.22731308]
[1759347818928,11.10823339,4334.8,4332.0,1.80043747]
[1759347818929,0.4402,4332.2,4331.5,0.1344]
[1759347819126,0.4402,4332.2,4331.5,0.5713]
[1759347819127,0.63294,4331.6,4331.5,0.5713]
[1759347819431,0.41533,4331.7,4331.5,0.5713]
[1759347819832,0.41531,4331.9,4331.8,0.4369]
[1759347820223,0.41734732,4331.9,4331.8,0.4369]
[1759347820822,0.41734732,4331.9,4331.8,0.775]
[1759347823222,0.63494732,4331.9,4331.8,0.775]
[1759347823427,1.18244732,4331.9,4331.8,0.775]
[1759347823923,1.18244732,4331.9,4331.8,0.5616]
[1759347824121,1.18244732,4331.9,4331.8,0.3381]
[1759347824326,0.41534,4331.6,4331.5,0.1372086]
[1759347824529,1.18044,4331.6,4331.5,0.3607086]
[1759347825024,11.10854339,4331.6,4331.5,0.5644086]
[1759347825331,0.85558,4331.1,4331.0,0.4725]
[1759347825527,4.38828,4331.1,4331.0,0.696]
[1759347825730,0.41543,4330.6,4330.5,0.5713]
[1759347826032,0.63303,4330.6,4330.5,0.5713]
[1759347826229,0.63303,4330.6,4330.5,0.91124386]
[1759347826829,4.08178,4331.1,4331.0,0.9094]
[1759347827029,3.84078,4331.1,4331.0,0.9094]
[1759347827340,3.84078,4331.1,4330.5,0.00184386]
[1759347827341,1.18053,4330.6,4330.5,0.00184386]
[1759347827528,1.18053,4330.6,4330.5,0.22534386]
[1759347827933,11.10863339,4330.6,4330.5,0.22534386]
[1759347828127,11.10863339,4330.6,4330.5,0.00184386]
[1759347829232,0.5425,4329.8,4329.7,1.016]
[1759347829733,0.7651,4329.8,4329.7,0.4369]
[1759347829930,10.69320339,4329.8,4329.7,0.2235]
[1759347830130,10.69320339,4329.8,4329.7,0.22559816]
[1759347830326,10.69320339,4329.8,4329.7,0.00209816]
[1759347830731,10.93420339,4329.8,4329.7,0.00209816]
[1759347831128,10.93420339,4329.8,4329.1,3.2078]
[1759347831335,0.7651,4328.0,4327.9,0.79810616]
[1759347831538,0.3249,4328.0,4327.9,0.79810616]
[1759347832232,0.54529877,4328.0,4327.9,0.80105181]
[1759347832737,0.00279877,4328.0,4327.9,0.80105181]
[1759347832935,0.00279877,4328.0,4327.9,6.04205181]
[1759347840544,0.00279877,4328.0,4327.9,1.04205181]
[1759347847552,0.33559877,4328.0,4327.9,1.04205181]
[1759347847856,0.77819877,4328.0,4327.9,1.04105181]
[1759347848058,0.55509877,4328.0,4327.9,1.04105181]
[1759347850550,15.83880216,4328.0,4327.9,0.02605181]
[1759347850754,0.5523,4327.4,4327.3,3.6648]
[1759347850955,0.5523,4327.4,4327.3,3.9998]
[1759347850956,9.92810339,4327.4,4327.3,3.9998]
[1759347851248,0.5523,4327.7,4327.6,0.792]
[1759347851453,1.07765071,4327.7,4327.6,1.033]
[1759347851653,1.07765071,4327.7,4327.6,1.03504795]
[1759347852353,1.30075071,4327.7,4327.6,1.03504795]
[1759347854854,0.85815071,4327.7,4327.6,1.03504795]
[1759347855060,0.52535071,4327.7,4327.6,1.03504795]
[1759347855760,0.00279877,4328.0,4327.9,0.457]
[1759347855961,0.33559877,4328.0,4327.9,1.033]
[1759347856455,1.30459243,4328.0,4327.9,1.033]
[1759347856761,11.36519582,4328.0,4327.9,0.698]
[1759347857663,11.36519582,4328.0,4327.9,1.033]
[1759347858659,11.36519582,4328.0,4327.9,0.698]
[1759347860562,11.36519582,4328.0,4327.9,0.241]
[1759347861561,11.36519582,4328.0,4327.6,0.00204795]
[1759347861858,0.3188,4329.1,4329.0,0.4438]
[1759347862160,0.5365,4329.3,4329.2,0.4438]
[1759347862361,0.4405,4329.3,4329.2,0.243]
[1759347862665,10.36860339,4329.3,4329.2,0.243]
[1759347862865,10.37028267,4329.3,4329.2,0.243]
[1759347863066,10.68908267,4329.3,4329.2,0.4679]
[1759347864460,10.68908267,4329.3,4329.2,0.243]
[1759347865760,10.68908267,4329.3,4328.5,0.8042]
[1759347865761,0.5593,4328.6,4328.5,0.8042]
[1759347865965,0.5593,4328.6,4328.5,1.0472]
[1759347866566,0.7749,4328.6,4328.5,1.0472]
[1759347868367,0.5497253,4328.6,4328.5,1.36406934]
[1759347868568,10.47782869,4328.6,4328.5,1.36306934]
[1759347870176,0.1366,4329.0,4328.5,1.49836934]
[1759347870467,0.3268,4329.0,4328.6,1.12106934]
[1759347870660,0.77657928,4329.3,4329.2,0.8042]
[1759347870960,0.77657928,4329.3,4329.2,1.36306934]
[1759347871163,10.70468267,4329.3,4329.2,1.36306934]
[1759347871764,10.70468267,4329.3,4329.2,1.01456934]
[1759347873076,10.70468267,4329.3,4329.2,0.54276934]
[1759347873278,10.70468267,4329.3,4329.2,0.78476934]
[1759347876275,10.70468267,4329.3,4329.2,0.55886934]
[1759347877577,10.70468267,4329.3,4329.2,0.242]
[1759347883381,10.70468267,4329.3,4329.1,0.82104584]
[1759347883587,10.70300339,4329.2,4329.1,0.82104584]
[1759347883777,10.70300339,4329.2,4329.1,1.06204584]
[1759347883977,0.7749,4329.2,4329.1,1.28794584]
[1759347884977,0.7749,4329.2,4329.1,1.63644584]
[1759347885173,0.7749,4329.2,4329.1,0.8154]
[1759347885779,0.7749,4329.2,4329.1,1.0452]
[1759347887382,0.5593,4329.2,4329.1,2.27875378]
[1759347887583,0.00167928,4329.3,4329.2,0.8042]
[1759347889590,0.23417928,4329.3,4329.2,0.8042]
[1759347891098,0.00167928,4329.3,4329.2,0.8042]
[1759347891486,0.23417928,4329.3,4329.2,0.8042]
[1759347892886,0.56097928,4329.3,4329.2,0.8042]
[1759347895282,0.23417928,4329.3,4329.2,0.8042]
[1759347896187,0.56987928,4329.3,4329.2,0.8042]
[1759347896382,0.23417928,4329.3,4329.2,0.8042]
[1759347896587,0.00167928,4329.3,4329.2,0.8042]
[1759347897191,0.54727928,4329.3,4329.2,0.8042]
[1759347897393,0.77297928,4329.3,4329.2,0.8042]
[1759347900396,0.7713,4328.9,4328.8,0.24]
[1759347900790,0.4356,4328.9,4328.8,0.24]
[1759347901397,0.7713,4328.9,4328.8,0.24]
[1759347902392,2.08316343,4331.3,4329.1,3.834]
[1759347902590,4.06204129,4332.6,4331.3,3.834]
[1759347902897,12.01126682,4333.4,4333.3,0.7471]
[1759347903197,3.18121248,4333.4,4333.3,1.87525488]
[1759347903398,2.71074564,4333.4,4333.3,1.87817935]
[1759347903603,1.71384564,4333.4,4333.3,2.45240912]
[1759347903800,1.01722511,4333.4,4333.3,2.45240912]
[1759347904305,5.11e-06,4333.4,4333.3,2.45240912]
[1759347909801,9.28529861,4333.9,4333.8,0.7471]
[1759347910100,8.10476861,4333.9,4333.8,5.24111465]
[1759347910301,7.43245861,4333.9,4333.8,5.65624465]
[1759347910694,6.96628445,4333.9,4333.8,5.65624465]
[1759347910899,6.44082445,4333.9,4333.8,5.65624465]
[1759347911798,5.82477445,4333.9,4333.8,5.65624465]
[1759347911999,5.17905445,4333.9,4333.8,5.65624465]
[1759347912490,5.84e-06,4333.9,4333.8,5.65624465]
[1759347912696,3.2078,4335.5,4335.3,0.41497]
[1759347913000,4.49244861,4335.4,4335.3,1.020442]
[1759347913200,4.49244861,4335.4,4335.1,0.3204]
[1759347913504,3.2078,4335.5,4335.4,0.41497]
[1759347913702,3.21073574,4335.5,4335.4,0.41497]
[1759347913902,17.94259121,4335.5,4335.4,0.41497]
[1759347918504,17.94259121,4335.5,4335.4,0.95067]
[1759347918807,17.94259121,4335.5,4335.4,1.757966]
[1759347919203,17.94259121,4335.5,4335.4,0.95067]